fUST/lending_fUST_20251115
["ID","MTS","AMOUNT","RATE_DAILY","PERIOD"]
[393973172,1763150142350,-309.65568806,0.000408,120]
[393973173,1763150142372,-200.10443906,0.000408,120]
[393973174,1763150142394,-433.43207281,0.000408,120]
[393973175,1763150142416,-235.06478025,0.000408,120]
[393973176,1763150142440,-163.81651221,0.000408,120]
[393973177,1763150142463,-642.4714065,0.000408,120]
[393973178,1763150142489,-454.22524,0.000408,120]
[393973179,1763150142515,-500.0,0.00040822,30]
[393973180,1763150142539,-526.82850616,0.00040871,120]
[393973181,1763150142563,-182.22,0.00040896,120]
[393973182,1763150142590,-182.22,0.00040996,120]
[393973183,1763150142613,-418.2924261,0.00040999,120]
[393973184,1763150142636,-4454.0,0.00041029,120]
[393973185,1763150142660,-472.24004474,0.0004106,120]
[393973186,1763150142684,-999.0,0.00041095,120]
[393973187,1763150142707,-500.0,0.00041096,30]
[393973188,1763150142732,-182.22,0.00041096,120]
[393973189,1763150142756,-783.33,0.00041096,120]
[393973190,1763150142779,-393.07,0.00041096,120]
[393973191,1763150142804,-182.22,0.00041196,120]
[393973192,1763150142830,-182.22,0.00041296,120]
[393973193,1763150142852,-500.0,0.0004137,120]
[393973194,1763150142880,-182.22,0.00041396,120]
[393973195,1763150142908,-182.22,0.00041496,120]
[393973196,1763150142935,-182.22,0.00041596,120]
[393973197,1763150142959,-500.0,0.00041644,120]
[393973198,1763150142986,-182.22,0.00041696,120]
[393973199,1763150143014,-182.22,0.00041796,120]
[393973200,1763150143039,-182.22,0.00041896,120]
[393973201,1763150143064,-500.0,0.00041918,120]
[393973202,1763150143089,-182.22,0.00041996,120]
[393973203,1763150143113,-1073.62994227,0.00042,120]
[393973204,1763150143265,-160.28857288,0.00042,120]
[393973205,1763150143289,-188.8997868,0.00042,120]
[393973206,1763150143313,-184.20668695,0.00042,120]
[393973207,1763150143338,-400.07624171,0.00042,120]
[393973208,1763150143364,-300.62817991,0.00042,120]
[393973209,1763150143390,-277.54104803,0.00042,120]
[393973210,1763150143414,-309.65568806,0.00042,120]
[393973211,1763150143439,-200.10443906,0.00042,120]
[393973212,1763150143462,-433.43207281,0.00042,120]
[393973213,1763150143486,-156.0,0.00042,120]
[393973214,1763150143511,-642.4714065,0.00042,120]
[393973215,1763150143537,-182.22,0.00042096,120]
[393973216,1763150143561,-500.0,0.00042192,120]
[393973217,1763150143586,-182.22,0.00042196,120]
[393973218,1763150143612,-182.22,0.00042296,120]
[393973219,1763150143636,-182.22,0.00042396,120]
[393973220,1763150143660,-500.0,0.00042466,120]
[393973221,1763150143686,-182.22,0.00042496,120]
[393973222,1763150143710,-454.22524,0.00042549,120]
[393973223,1763150143735,-182.22,0.00042596,120]
[393973224,1763150143761,-182.22,0.00042696,120]
[393973225,1763150143786,-500.0,0.0004274,120]
[393973226,1763150143812,-182.22,0.00042796,120]
[393973227,1763150143837,-563.02283101,0.00042871,120]
[393973228,1763150143866,-182.24,0.00042896,120]
[393973229,1763150143890,-500.0,0.00043014,120]
[393973230,1763150143916,-160.785133,0.00043017,120]
[393973231,1763150143940,-51789.3854,0.0004322,30]
[393973232,1763150143965,-500.0,0.00043288,120]
[393973233,1763150143991,-1073.62994227,0.000433,120]
[393973234,1763150144016,-188.8997868,0.000433,120]
[393973235,1763150144040,-184.20668695,0.000433,120]
[393973236,1763150144064,-400.07624171,0.000433,120]
[393973237,1763150144087,-300.62817991,0.000433,120]
[393973238,1763150144111,-277.54104803,0.000433,120]
[393973239,1763150144134,-309.65568806,0.000433,120]
[393973240,1763150144162,-433.43207281,0.000433,120]
[393973241,1763150144187,-642.4714065,0.000433,120]
[393973242,1763150144212,-500.0,0.00043562,120]
[393973243,1763150144236,-702.75847632,0.00043562,120]
[393973244,1763150144260,-372.0,0.000438,90]
[393973245,1763150144284,-999.0,0.00043835,120]
[393973246,1763150144308,-500.0,0.00043836,120]
[393973247,1763150144330,-270.45837137,0.00043836,120]
[393973248,1763150144355,-983.91,0.00044109,30]
[393973249,1763150144377,-500.0,0.0004411,120]
[393973250,1763150144402,-454.22524,0.00044298,120]
[393973251,1763150144426,-156.0,0.000443,120]
[393973252,1763150144450,-500.0,0.00044384,120]
[393973253,1763150144474,-179.82017982,0.00044402,31]
[393973254,1763150144499,-1073.62994227,0.000446,120]
[393973255,1763150144524,-184.20668695,0.000446,120]
[393973256,1763150144548,-400.07624171,0.000446,120]
[393973257,1763150144570,-300.62817991,0.000446,120]
[393973258,1763150144593,-277.54104803,0.000446,120]
[393973259,1763150144618,-309.65568806,0.000446,120]
[393973260,1763150144642,-433.43207281,0.000446,120]
[393973261,1763150144670,-642.4714065,0.000446,120]
[393973262,1763150144694,-500.0,0.00044658,120]
[393973263,1763150144718,-599.21715586,0.00044871,120]
[393973264,1763150144741,-199.999999,0.00045,120]
[393973265,1763150144766,-1000.0,0.00045,120]
[393973266,1763150144790,-1000.0,0.00045,30]
[393973267,1763150144816,-160.197305,0.00045205,120]
[393973268,1763150144840,-178.677,0.00045418,73]
[393973269,1763150144865,-983.91,0.00045479,30]
[393973270,1763150144889,-70001.00000006,0.000459,120]
[393973271,1763150144915,-454.22524,0.00046048,120]
[393973272,1763150144940,-395.2109804,0.00046322,30]
[393973273,1763150144967,-395.2109804,0.00046322,30]
[393973274,1763150144994,-395.2109804,0.00046322,30]
[393973275,1763150145019,-395.2109804,0.00046322,30]
[393973276,1763150145045,-395.2109804,0.00046322,30]
[393973277,1763150145070,-395.2109804,0.00046322,30]
[393973278,1763150145097,-395.2109804,0.00046322,30]
[393973279,1763150145121,-204.0,0.0004635,71]
[393973280,1763150145146,-461.9872432,0.00046459,30]
[393973281,1763150145172,-999.0,0.00046575,120]
[393973282,1763150145198,-156.0,0.000467,120]
[393973283,1763150145225,-983.91,0.00046849,30]
[393973284,1763150145250,-635.41148071,0.00046871,120]
[393973285,1763150145279,-454.22524,0.00047797,120]
[393973286,1763150145302,-500.0,0.00047805,60]
[393973287,1763150145326,-172.86832511,0.00047863,30]
[393973288,1763150145349,-29842.35945791,0.00048,30]
[393973289,1763150145373,-172.86832511,0.0004811,30]
[393973290,1763150145397,-983.91,0.00048219,30]
[393973291,1763150145421,-172.86832511,0.00048329,30]
[393973292,1763150145445,-172.86832511,0.00048575,30]
[393973293,1763150145467,-11156.22262962,0.000487,120]
[393973294,1763150145492,-172.86832511,0.00048795,30]
[393973295,1763150145518,-671.60580556,0.00048871,120]
[393973296,1763150145659,-1000.0,0.00049,120]
[393973297,1763150145694,-156.0,0.00049,120]
[393973298,1763150145718,-172.86832511,0.00049014,30]
[393973299,1763150145742,-172.86832511,0.0004926,30]
[393973300,1763150145768,-999.0,0.00049315,120]
[393973301,1763150145791,-151.0,0.00049315,120]
[393973302,1763150145816,-151.0,0.00049315,120]
[393973303,1763150145839,-151.0,0.00049315,120]
[393973304,1763150145862,-151.0,0.00049315,120]
[393973305,1763150145886,-151.0,0.00049315,120]
[393973306,1763150145910,-151.0,0.00049315,120]
[393973307,1763150145935,-151.0,0.00049315,120]
[393973308,1763150145958,-203.200675,0.00049315,120]
[393973309,1763150145983,-172.86832511,0.00049479,30]
[393973310,1763150146006,-983.91,0.00049589,30]
[393973311,1763150146030,-172.86832511,0.00049726,30]
[393973312,1763150146052,-172.86832511,0.00049945,30]
[393973313,1763150146076,-11395.53307008,0.0005,120]
[393973314,1763150146098,-5011.96242133,0.0005,31]
[393973315,1763150146125,-918.83350097,0.0005,120]
[393973316,1763150146168,-2000.0,0.0005,30]
[393973317,1763150146193,-10000.0,0.0005,30]
[393973318,1763150146218,-172.86832511,0.00050192,30]
[393973319,1763150146242,-472.24004474,0.00050206,120]
[393973320,1763150146267,-987.0,0.00050259,120]
[393973321,1763150146290,-1422.184,0.00050259,120]
[393973322,1763150146314,-629.0,0.00050259,120]
[393973323,1763150146337,-172.86832511,0.00050411,30]
[393973324,1763150146360,-300.0,0.00050849,90]
[393973325,1763150146384,-707.80013041,0.00050871,120]
[393973326,1763150146408,-983.91,0.00050958,30]
[393973327,1763150146432,-200.0,0.00051081,120]
[393973328,1763150146456,-156.0,0.000513,120]
[393973329,1763150146480,-78001.78452232,0.00052,120]
[393973330,1763150146508,-999.0,0.00052054,120]
[393973331,1763150146532,-983.91,0.00052328,30]
[393973332,1763150146556,-200.0,0.00052776,120]
[393973333,1763150146580,-743.99445526,0.00052871,120]
[393973334,1763150146603,-89175.11102741,0.00053,30]
[393973335,1763150146625,-1000.0,0.00053,120]
[393973336,1763150146649,-987.0,0.00053259,120]
[393973337,1763150146671,-629.0,0.00053259,120]
[393973338,1763150146695,-32935.5052,0.0005344,30]
[393973339,1763150146718,-876.64348737,0.000535,120]
[393973340,1763150146742,-983.91,0.00053698,30]
[393973341,1763150146767,-156.0,0.000537,120]
[393973342,1763150146790,-300000.0,0.00053989,120]
[393973343,1763150146814,-3581.25096038,0.000542,120]
[393973344,1763150146838,-3600.0,0.000542,120]
[393973345,1763150146862,-3400.0,0.000542,120]
[393973346,1763150146886,-5000.0,0.000542,120]
[393973347,1763150146911,-500.0,0.00054794,120]
[393973348,1763150146934,-502.60912032,0.00054794,120]
[393973349,1763150146960,-260.86105863,0.00054794,30]
[393973350,1763150146984,-500.0,0.00054794,120]
[393973351,1763150147007,-509.55,0.00054794,120]
[393973352,1763150147031,-500.0,0.00054794,120]
[393973353,1763150147054,-500.0,0.00054794,120]
[393973354,1763150147078,-500.0,0.00054794,120]
[393973355,1763150147104,-500.0,0.00054794,120]
[393973356,1763150147127,-500.0,0.00054794,120]
[393973357,1763150147152,-500.0,0.00054794,120]
[393973358,1763150147176,-500.0,0.00054794,120]
[393973359,1763150147200,-549.04376058,0.00054794,120]
[393973360,1763150147225,-221.43,0.00054794,120]
[393973361,1763150147248,-500.0,0.00054794,120]
[393973362,1763150147271,-500.0,0.00054794,120]
[393973363,1763150147295,-500.0,0.00054794,120]
[393973364,1763150147318,-513.09682823,0.00054794,120]
[393973365,1763150147341,-500.0,0.00054794,120]
[393973366,1763150147365,-477.62386671,0.00054794,120]
[393973367,1763150147388,-500.0,0.00054794,120]
[393973368,1763150147412,-500.0,0.00054794,120]
[393973369,1763150147438,-500.0,0.00054794,120]
[393973370,1763150147462,-500.0,0.00054794,120]
[393973371,1763150147484,-500.0,0.00054794,120]
[393973372,1763150147509,-500.0,0.00054794,120]
[393973373,1763150147531,-500.0,0.00054794,120]
[393973374,1763150147554,-500.0,0.00054794,120]
[393973375,1763150147577,-500.0,0.00054794,120]
[393973376,1763150147600,-500.0,0.00054794,120]
[393973377,1763150147622,-500.0,0.00054794,120]
[393973378,1763150147645,-500.0,0.00054794,120]
[393973379,1763150147668,-500.0,0.00054794,120]
[393973380,1763150147690,-500.0,0.00054794,120]
[393973381,1763150147714,-500.0,0.00054794,120]
[393973382,1763150147737,-500.0,0.00054794,120]
[393973383,1763150147760,-500.0,0.00054794,120]
[393973384,1763150147783,-500.0,0.00054794,120]
[393973385,1763150147807,-500.0,0.00054794,120]
[393973386,1763150147830,-500.0,0.00054794,120]
[393973387,1763150147983,-500.0,0.00054794,120]
[393973388,1763150148010,-509.12492554,0.00054794,120]
[393973389,1763150148035,-500.0,0.00054794,120]
[393973390,1763150148059,-500.0,0.00054794,120]
[393973391,1763150148084,-500.0,0.00054794,120]
[393973392,1763150148109,-500.0,0.00054794,120]
[393973393,1763150148133,-500.0,0.00054794,120]
[393973394,1763150148159,-500.0,0.00054794,120]
[393973395,1763150148182,-500.0,0.00054794,120]
[393973396,1763150148208,-500.0,0.00054794,120]
[393973397,1763150148233,-500.0,0.00054794,120]
[393973398,1763150148257,-500.0,0.00054794,120]
[393973399,1763150148283,-500.0,0.00054794,120]
[393973400,1763150148314,-516.54658001,0.00054794,120]
[393973401,1763150148339,-506.05538278,0.00054794,120]
[393973402,1763150148364,-500.0,0.00054794,120]
[393973403,1763150148387,-500.0,0.00054794,120]
[393973404,1763150148416,-202.45097806,0.00054794,120]
[393973405,1763150148441,-500.0,0.00054794,120]
[393973406,1763150148465,-500.0,0.00054794,120]
[393973407,1763150148490,-500.0,0.00054794,120]
[393973408,1763150148516,-500.0,0.00054794,120]
[393973409,1763150148540,-500.0,0.00054794,120]
[393973410,1763150148564,-500.0,0.00054794,120]
[393973411,1763150148589,-500.0,0.00054794,120]
[393973412,1763150148614,-500.0,0.00054794,120]
[393973413,1763150148638,-500.0,0.00054794,120]
[393973414,1763150148662,-500.0,0.00054794,120]
[393973415,1763150148688,-567.66,0.00054794,120]
[393973416,1763150148712,-585.4,0.00054794,120]
[393973417,1763150148735,-410.41645068,0.00054794,120]
[393973418,1763150148759,-500.0,0.00054794,120]
[393973419,1763150148784,-500.0,0.00054794,120]
[393973420,1763150148808,-500.0,0.00054794,120]
[393973421,1763150148833,-500.0,0.00054794,30]
[393973422,1763150148858,-500.0,0.00054794,120]
[393973423,1763150148882,-500.0,0.00054794,120]
[393973424,1763150148909,-500.0,0.00054794,120]
[393973425,1763150148935,-500.0,0.00054794,120]
[393973426,1763150148961,-500.0,0.00054794,120]
[393973427,1763150148987,-500.0,0.00054794,120]
[393973428,1763150149022,-500.0,0.00054794,120]
[393973429,1763150149050,-500.0,0.00054794,120]
[393973430,1763150149076,-500.0,0.00054794,120]
[393973431,1763150149104,-500.0,0.00054794,120]
[393973432,1763150149128,-500.0,0.00054794,120]
[393973433,1763150149157,-500.0,0.00054794,120]
[393973434,1763150149181,-500.0,0.00054794,120]
[393973435,1763150149206,-500.0,0.00054794,120]
[393973436,1763150149231,-500.0,0.00054794,120]
[393973437,1763150149257,-500.0,0.00054794,120]
[393973438,1763150149281,-500.0,0.00054794,120]
[393973439,1763150149304,-500.0,0.00054794,120]
[393973440,1763150149327,-500.0,0.00054794,120]
[393973441,1763150149352,-500.0,0.00054794,120]
[393973442,1763150149376,-377.09577095,0.00054794,120]
[393973443,1763150149401,-500.0,0.00054794,120]
[393973444,1763150149425,-500.0,0.00054794,120]
[393973445,1763150149449,-500.0,0.00054794,120]
[393973446,1763150149472,-500.0,0.00054794,120]
[393973447,1763150149510,-500.0,0.00054794,120]
[393973448,1763150149542,-500.0,0.00054794,120]
[393973449,1763150149568,-500.0,0.00054794,120]
[393973450,1763150149594,-415.99326756,0.00054794,120]
[393973451,1763150149621,-500.0,0.00054794,120]
[393973452,1763150149647,-500.0,0.00054794,120]
[393973453,1763150149674,-500.0,0.00054794,120]
[393973454,1763150149701,-500.0,0.00054794,120]
[393973455,1763150149729,-500.0,0.00054794,120]
[393973456,1763150149755,-163.04482425,0.00054794,120]
[393973457,1763150149779,-500.0,0.00054794,120]
[393973458,1763150149802,-500.0,0.00054794,120]
[393973459,1763150149826,-502.67449912,0.00054794,120]
[393973460,1763150149849,-500.0,0.00054794,120]
[393973461,1763150149873,-500.0,0.00054794,120]
[393973462,1763150149896,-500.0,0.00054794,120]
[393973463,1763150149919,-500.0,0.00054794,120]
[393973464,1763150149942,-500.0,0.00054794,120]
[393973465,1763150149965,-500.0,0.00054794,120]
[393973466,1763150149988,-500.0,0.00054794,120]
[393973467,1763150150013,-500.0,0.00054794,120]
[393973468,1763150150038,-500.0,0.00054794,120]
[393973469,1763150150062,-500.0,0.00054794,120]
[393973470,1763150150085,-500.0,0.00054794,120]
[393973471,1763150150108,-500.0,0.00054794,120]
[393973472,1763150150131,-240.57085711,0.00054794,120]
[393973473,1763150150157,-500.0,0.00054794,120]
[393973474,1763150150181,-500.0,0.00054794,120]
[393973475,1763150150325,-500.0,0.00054794,120]
[393973476,1763150150349,-500.0,0.00054794,120]
[393973477,1763150150374,-500.0,0.00054794,120]
[393973478,1763150150397,-500.0,0.00054794,120]
[393973479,1763150150420,-500.0,0.00054794,120]
[393973480,1763150150442,-500.0,0.00054794,120]
[393973481,1763150150465,-500.0,0.00054794,120]
[393973482,1763150150487,-500.0,0.00054794,120]
[393973483,1763150150511,-500.0,0.00054794,120]
[393973484,1763150150535,-500.0,0.00054794,120]
[393973485,1763150150558,-500.0,0.00054794,120]
[393973486,1763150150581,-500.0,0.00054794,120]
[393973487,1763150150603,-500.0,0.00054794,120]
[393973488,1763150150627,-293.74773452,0.00054794,120]
[393973489,1763150150649,-500.0,0.00054794,120]
[393973490,1763150150673,-500.0,0.00054794,120]
[393973491,1763150150695,-500.0,0.00054794,120]
[393973492,1763150150719,-500.0,0.00054794,120]
[393973493,1763150150742,-500.0,0.00054794,120]
[393973494,1763150150766,-500.0,0.00054794,120]
[393973495,1763150150790,-454.62056366,0.00054794,120]
[393973496,1763150150818,-500.0,0.00054794,120]
[393973497,1763150150844,-500.0,0.00054794,120]
[393973498,1763150150872,-500.0,0.00054794,120]
[393973499,1763150150897,-500.0,0.00054794,120]
[393973500,1763150150923,-500.0,0.00054794,120]
[393973501,1763150150950,-500.0,0.00054794,120]
[393973502,1763150150976,-500.0,0.00054794,120]
[393973503,1763150151002,-500.0,0.00054794,120]
[393973504,1763150151028,-500.0,0.00054794,120]
[393973505,1763150151051,-500.0,0.00054794,120]
[393973506,1763150151074,-500.0,0.00054794,120]
[393973507,1763150151097,-535.15202116,0.00054794,120]
[393973508,1763150151121,-493.73820279,0.00054794,120]
[393973509,1763150151144,-500.0,0.00054794,120]
[393973510,1763150151173,-500.0,0.00054794,120]
[393973511,1763150151198,-500.0,0.00054794,120]
[393973512,1763150151221,-500.0,0.00054794,120]
[393973513,1763150151246,-500.0,0.00054794,120]
[393973514,1763150151272,-500.0,0.00054794,120]
[393973515,1763150151296,-500.35365101,0.00054794,120]
[393973516,1763150151320,-500.0,0.00054794,120]
[393973517,1763150151344,-500.0,0.00054794,120]
[393973518,1763150151368,-500.0,0.00054794,120]
[393973519,1763150151393,-500.0,0.00054794,120]
[393973520,1763150151416,-500.0,0.00054794,120]
[393973521,1763150151440,-500.0,0.00054794,120]
[393973522,1763150151464,-500.0,0.00054794,120]
[393973523,1763150151487,-500.0,0.00054794,120]
[393973524,1763150151509,-500.0,0.00054794,120]
[393973525,1763150151532,-500.0,0.00054794,120]
[393973526,1763150151555,-500.0,0.00054794,120]
[393973527,1763150151576,-500.0,0.00054794,120]
[393973528,1763150151600,-500.0,0.00054794,120]
[393973529,1763150151624,-500.0,0.00054794,120]
[393973530,1763150151648,-500.0,0.00054794,120]
[393973531,1763150151671,-500.0,0.00054794,120]
[393973532,1763150151696,-500.0,0.00054794,120]
[393973533,1763150151720,-546.33,0.00054794,120]
[393973534,1763150151743,-500.0,0.00054794,120]
[393973535,1763150151767,-500.0,0.00054794,120]
[393973536,1763150151790,-500.0,0.00054794,120]
[393973537,1763150151814,-500.0,0.00054794,120]
[393973538,1763150151838,-500.0,0.00054794,120]
[393973539,1763150151862,-500.0,0.00054794,120]
[393973540,1763150151886,-500.0,0.00054794,120]
[393973541,1763150151910,-500.0,0.00054794,120]
[393973542,1763150151934,-500.0,0.00054794,120]
[393973543,1763150151958,-500.0,0.00054794,120]
[393973544,1763150151982,-557.20223839,0.00054794,120]
[393973545,1763150152007,-500.0,0.00054794,120]
[393973546,1763150152031,-500.0,0.00054794,120]
[393973547,1763150152054,-349.80094393,0.00054794,120]
[393973548,1763150152078,-500.0,0.00054794,120]
[393973549,1763150152102,-500.0,0.00054794,120]
[393973550,1763150152125,-500.0,0.00054794,120]
[393973551,1763150152152,-500.0,0.00054794,120]
[393973552,1763150152175,-500.0,0.00054794,120]
[393973553,1763150152199,-500.0,0.00054794,120]
[393973554,1763150152222,-500.0,0.00054794,120]
[393973555,1763150152248,-500.0,0.00054794,120]
[393973556,1763150152272,-500.0,0.00054794,120]
[393973557,1763150152296,-500.0,0.00054794,120]
[393973558,1763150152321,-500.0,0.00054794,120]
[393973559,1763150152437,-543.83937318,0.00054794,120]
[393973560,1763150152488,-516.61455263,0.00054794,120]
[393973561,1763150152512,-500.0,0.00054794,120]
[393973562,1763150152538,-500.0,0.00054794,120]
[393973563,1763150152562,-500.0,0.00054794,120]
[393973564,1763150152587,-500.0,0.00054794,120]
[393973565,1763150152611,-500.0,0.00054794,120]
[393973566,1763150152634,-437.8562223,0.00054794,120]
[393973567,1763150152658,-200.00000006,0.00054794,120]
[393973568,1763150152681,-500.0,0.00054794,120]
[393973569,1763150152705,-500.0,0.00054794,120]
[393973570,1763150152728,-226.26504127,0.00054794,120]
[393973571,1763150152752,-2603.47,0.00054794,120]
[393973572,1763150152776,-502.60383441,0.00054794,120]
[393973573,1763150152800,-500.0,0.00054794,120]
[393973574,1763150152823,-500.0,0.00054794,120]
[393973575,1763150152847,-500.0,0.00054794,120]
[393973576,1763150152871,-500.0,0.00054794,120]
[393973577,1763150152895,-500.0,0.00054794,120]
[393973578,1763150152918,-500.0,0.00054794,120]
[393973579,1763150152944,-500.0,0.00054794,120]
[393973580,1763150152968,-500.0,0.00054794,120]
[393973581,1763150152995,-500.0,0.00054794,120]
[393973582,1763150153021,-500.0,0.00054794,120]
[393973583,1763150153047,-500.0,0.00054794,120]
[393973584,1763150153073,-698.08,0.00054794,120]
[393973585,1763150153099,-522.79695942,0.00054794,120]
[393973586,1763150153125,-500.0,0.00054794,120]
[393973587,1763150153155,-500.0,0.00054794,120]
[393973588,1763150153180,-500.0,0.00054794,120]
[393973589,1763150153205,-511.0201368,0.00054794,120]
[393973590,1763150153231,-500.0,0.00054794,120]
[393973591,1763150153257,-330.02235829,0.00054794,120]
[393973592,1763150153282,-500.0,0.00054794,120]
[393973593,1763150153310,-1001.7,0.00054794,120]
[393973594,1763150153336,-500.0,0.00054794,120]
[393973595,1763150153361,-500.0,0.00054794,120]
[393973596,1763150153386,-500.0,0.00054794,120]
[393973597,1763150153411,-500.0,0.00054794,120]
[393973598,1763150153435,-500.0,0.00054794,120]
[393973599,1763150153459,-500.0,0.00054794,120]
[393973600,1763150153484,-500.0,0.00054794,120]
[393973601,1763150153510,-500.0,0.00054794,120]
[393973602,1763150153535,-501.96215802,0.00054794,120]
[393973603,1763150153560,-500.0,0.00054794,120]
[393973604,1763150153584,-500.0,0.00054794,120]
[393973605,1763150153610,-500.0,0.00054794,120]
[393973606,1763150153635,-500.0,0.00054794,120]
[393973607,1763150153660,-500.0,0.00054794,120]
[393973608,1763150153685,-500.0,0.00054794,120]
[393973609,1763150153711,-500.0,0.00054794,120]
[393973610,1763150153736,-500.0,0.00054794,120]
[393973611,1763150153761,-500.0,0.00054794,120]
[393973612,1763150153786,-500.0,0.00054794,120]
[393973613,1763150153812,-500.0,0.00054794,120]
[393973614,1763150153838,-500.0,0.00054794,120]
[393973615,1763150153864,-500.0,0.00054794,120]
[393973616,1763150153891,-500.0,0.00054794,120]
[393973617,1763150153917,-500.0,0.00054794,120]
[393973618,1763150153944,-500.0,0.00054794,120]
[393973619,1763150153970,-500.0,0.00054794,120]
[393973620,1763150153997,-500.0,0.00054794,120]
[393973621,1763150154024,-500.0,0.00054794,120]
[393973622,1763150154050,-500.0,0.00054794,120]
[393973623,1763150154076,-500.0,0.00054794,120]
[393973624,1763150154102,-500.0,0.00054794,120]
[393973625,1763150154127,-598.77295445,0.00054794,120]
[393973626,1763150154155,-500.0,0.00054794,120]
[393973627,1763150154181,-245.38132618,0.00054794,120]
[393973628,1763150154207,-500.0,0.00054794,120]
[393973629,1763150154233,-500.0,0.00054794,120]
[393973630,1763150154259,-500.0,0.00054794,120]
[393973631,1763150154284,-500.0,0.00054794,120]
[393973632,1763150154309,-219.6449877,0.00054794,120]
[393973633,1763150154333,-500.0,0.00054794,120]
[393973634,1763150154357,-500.0,0.00054794,120]
[393973635,1763150154382,-500.0,0.00054794,120]
[393973636,1763150154405,-500.0,0.00054794,120]
[393973637,1763150154430,-500.0,0.00054794,120]
[393973638,1763150154454,-600.08904264,0.00054794,120]
[393973639,1763150154477,-500.0,0.00054794,120]
[393973640,1763150154500,-500.0,0.00054794,120]
[393973641,1763150154527,-500.0,0.00054794,120]
[393973642,1763150154663,-500.0,0.00054794,120]
[393973643,1763150154687,-500.0,0.00054794,120]
[393973644,1763150154710,-557.0203829,0.00054794,120]
[393973645,1763150154735,-500.0,0.00054794,120]
[393973646,1763150154759,-500.0,0.00054794,120]
[393973647,1763150154784,-500.0,0.00054794,120]
[393973648,1763150154809,-500.0,0.00054794,120]
[393973649,1763150154833,-500.0,0.00054794,120]
[393973650,1763150154857,-500.0,0.00054794,120]
[393973651,1763150154883,-500.0,0.00054794,120]
[393973652,1763150154907,-500.0,0.00054794,120]
[393973653,1763150154932,-500.0,0.00054794,120]
[393973654,1763150154957,-502.18621134,0.00054794,120]
[393973655,1763150154982,-500.0,0.00054794,120]
[393973656,1763150155008,-500.0,0.00054794,120]
[393973657,1763150155034,-500.0,0.00054794,120]
[393973658,1763150155059,-500.0,0.00054794,120]
[393973659,1763150155083,-500.0,0.00054794,120]
[393973660,1763150155108,-500.0,0.00054794,120]
[393973661,1763150155131,-500.0,0.00054794,120]
[393973662,1763150155158,-500.0,0.00054794,120]
[393973663,1763150155181,-500.0,0.00054794,120]
[393973664,1763150155205,-500.0,0.00054794,120]
[393973665,1763150155231,-386.10449814,0.00054794,120]
[393973666,1763150155254,-500.0,0.00054794,120]
[393973667,1763150155279,-500.0,0.00054794,120]
[393973668,1763150155303,-500.0,0.00054794,120]
[393973669,1763150155327,-500.0,0.00054794,120]
[393973670,1763150155351,-500.0,0.00054794,120]
[393973671,1763150155375,-500.0,0.00054794,120]